bitfinex/quotes_BTCUSD_20220202
["timestamp","ask_amount","ask_price","bid_price","bid_amount"]
[1643817871816,0.00555969,37345.0,37343.0,1.547]
[1643817872015,0.1026,37344.0,37343.0,1.547]
[1643817872217,0.15927894,37344.0,37339.0,0.10125693]
[1643817872515,0.18207894,37346.0,37340.0,0.40923]
[1643817872725,0.00094,37351.0,37345.0,0.1]
[1643817872915,0.00088,37351.0,37343.0,0.1]
[1643817873120,0.00082,37351.0,37348.0,0.1]
[1643817873316,0.00076,37351.0,37348.0,0.1]
[1643817873518,0.0007,37351.0,37350.0,1.7713083]
[1643817873716,0.00064,37351.0,37350.0,1.80714822]
[1643817873915,0.00064,37351.0,37350.0,1.50714822]
[1643817874116,0.00058,37351.0,37350.0,1.50714822]
[1643817874385,0.00052,37351.0,37350.0,1.50714822]
[1643817874585,0.00046,37351.0,37350.0,1.50714822]
[1643817874986,0.0004,37351.0,37350.0,1.40714822]
[1643817875188,0.00744056,37366.0,37355.0,0.05]
[1643817875393,0.06019479,37374.0,37365.0,0.1]
[1643817875394,0.01,37371.0,37365.0,0.1]
[1643817875597,0.01,37371.0,37362.0,0.39883342]
[1643817875598,0.27234317,37371.0,37362.0,0.39883342]
[1643817875793,0.03452317,37371.0,37370.0,1.75]
[1643817875987,0.00994,37376.0,37375.0,0.93871564]
[1643817876288,0.00988,37376.0,37375.0,0.93871564]
[1643817876487,0.00982,37376.0,37375.0,0.93871564]
[1643817876686,0.14508009,37390.0,37375.0,1.83871564]
[1643817876887,0.066876,37385.0,37375.0,1.03871564]
[1643817877088,1.6e-05,37385.0,37375.0,1.03871564]
[1643817877289,0.00514226,37386.0,37382.0,1.65]
[1643817877290,0.00509826,37386.0,37382.0,1.65]
[1643817877486,0.92242,37385.0,37381.0,0.08948683]
[1643817877687,0.20064,37384.0,37381.0,0.08948683]
[1643817877889,0.20058,37384.0,37374.0,0.33988524]
[1643817878103,0.80949359,37385.0,37375.0,0.1]
[1643817878308,0.80943359,37385.0,37382.0,0.27721644]
[1643817878505,0.73137359,37385.0,37382.0,0.27721644]
[1643817878704,0.52295359,37385.0,37382.0,0.27721644]
[1643817878904,0.01,37388.0,37384.0,0.1]
[1643817879107,0.01,37388.0,37379.0,0.05]
[1643817879108,0.0004558,37385.0,37379.0,0.133827]
[1643817879309,0.0003958,37385.0,37374.0,0.2419874]
[1643817879508,0.0003958,37385.0,37350.0,0.76453949]
[1643817879509,0.00424,37375.0,37350.0,0.76453949]
[1643817879808,0.4,37372.0,37350.0,0.066941]
[1643817880007,0.43515272,37371.0,37351.0,0.7825]
[1643817880209,0.00544876,37364.0,37354.0,0.32440889]
[1643817880407,0.1,37370.0,37354.0,0.32440889]
[1643817880408,0.61464,37355.0,37354.0,0.32440889]
[1643817880604,0.61464,37355.0,37354.0,0.49715639]
[1643817880605,0.71372,37355.0,37354.0,0.49715639]
[1643817880816,0.82147904,37355.0,37354.0,0.73888342]
[1643817881008,0.82147904,37355.0,37354.0,0.58888342]
[1643817881009,0.88838904,37355.0,37354.0,0.58888342]
[1643817881207,0.22392904,37355.0,37354.0,1.08888342]
[1643817881407,0.22380904,37355.0,37354.0,1.08888342]
[1643817881609,0.22374904,37355.0,37354.0,0.20440889]
[1643817881854,0.1,37360.0,37355.0,0.11868]
[1643817882058,0.00438,37373.0,37359.0,0.1]
[1643817882260,0.00438,37373.0,37364.0,0.27668934]
[1643817882261,0.05,37365.0,37364.0,0.27668934]
[1643817882456,0.00666069,37366.0,37364.0,0.27668934]
[1643817882655,0.20749969,37366.0,37364.0,0.09786556]
[1643817882854,0.20743969,37366.0,37364.0,0.40783649]
[1643817883059,0.20731969,37366.0,37364.0,0.40783649]
[1643817883254,0.25725969,37366.0,37364.0,0.40783649]
[1643817883459,0.25719969,37366.0,37364.0,0.40783649]
[1643817883755,0.25719969,37366.0,37364.0,0.37038814]
[1643817883756,0.35707969,37366.0,37364.0,0.37038814]
[1643817883954,0.35695969,37366.0,37364.0,0.37038814]
[1643817884153,0.40683969,37366.0,37364.0,0.37038814]
[1643817884354,0.20682069,37366.0,37364.0,0.42038814]
[1643817884555,0.20670069,37366.0,37365.0,1.55823619]
[1643817884756,0.00564069,37366.0,37365.0,1.55823619]
[1643817885057,0.00552069,37366.0,37365.0,1.55823619]
[1643817885255,0.00540069,37366.0,37365.0,1.16255165]
[1643817885457,0.00540069,37366.0,37364.0,0.30997093]
[1643817885458,0.00528069,37366.0,37364.0,0.30997093]
[1643817885707,0.00516069,37366.0,37364.0,0.30997093]
[1643817885910,0.00504069,37366.0,37364.0,0.30997093]
[1643817886113,0.00492069,37366.0,37364.0,0.30997093]
[1643817886307,0.00480069,37366.0,37364.0,0.39384369]
[1643817886508,0.00462069,37366.0,37364.0,0.35639534]
[1643817886811,0.20520069,37366.0,37364.0,0.35639534]
[1643817887011,0.20508069,37366.0,37364.0,0.35639534]
[1643817887210,0.1,37371.0,37364.0,0.35639534]
[1643817887211,0.00615415,37367.0,37364.0,0.35639534]
[1643817887410,0.00603415,37367.0,37365.0,0.20024]
[1643817887611,0.80336984,37372.0,37366.0,0.37633065]
[1643817887811,0.80324984,37372.0,37371.0,1.35118762]
[1643817888009,0.18156806,37382.0,37371.0,1.35118762]
[1643817888213,0.20022,37377.0,37375.0,0.10024]
[1643817888410,0.00412,37387.0,37375.0,0.10024]
[1643817888411,0.00714343,37383.0,37376.0,1.65]
[1643817888618,0.00702343,37383.0,37372.0,0.21539445]
[1643817888812,0.0492,37388.0,37372.0,0.21539445]
[1643817889011,0.00677641,37380.0,37372.0,0.54797839]
[1643817889211,0.00665641,37380.0,37372.0,0.17339057]
[1643817889452,0.00653641,37380.0,37373.0,0.37458782]
[1643817889649,0.00635641,37380.0,37373.0,0.06693]
[1643817889848,0.00623641,37380.0,37373.0,0.06693]
[1643817890048,0.00611641,37380.0,37373.0,0.06693]
[1643817890250,0.00599641,37380.0,37373.0,0.15479675]
[1643817890448,0.00581641,37380.0,37379.0,0.25646115]
[1643817890651,0.20064,37375.0,37373.0,0.08786675]
[1643817890847,0.3367068,37375.0,37373.0,0.08786675]
[1643817891051,0.3367068,37375.0,37364.0,0.602367]
[1643817891052,0.15302,37374.0,37364.0,0.602367]
[1643817891255,0.14914,37374.0,37357.0,0.11694853]
[1643817891450,0.09988,37373.0,37367.0,0.29961266]
[1643817891751,0.05514384,37373.0,37372.0,0.20224377]
[1643817891948,0.05514384,37373.0,37372.0,0.5867992]
[1643817891949,0.10416384,37373.0,37372.0,0.5867992]
[1643817892151,0.2700248,37375.0,37373.0,1.35]
[1643817892351,0.1360068,37375.0,37374.0,1.72337856]
[1643817892549,0.1360068,37375.0,37374.0,1.3]
[1643817892550,0.1358268,37375.0,37374.0,1.3]
[1643817892748,0.1358268,37375.0,37368.0,0.066932]
[1643817892749,0.50884536,37375.0,37358.0,0.200802]
[1643817892951,0.00382,37366.0,37358.0,0.200802]
[1643817893205,0.00382,37366.0,37351.0,0.2474]
[1643817893206,0.0492,37365.0,37362.0,1.76451893]
[1643817893406,0.066955,37368.0,37362.0,1.0]
[1643817893407,0.05824618,37364.0,37362.0,1.0]
[1643817893605,0.0492,37363.0,37356.0,0.05]
[1643817893812,0.04908,37363.0,37362.0,0.81689009]
[1643817894004,0.04896,37363.0,37362.0,0.81689009]
[1643817894207,0.14884,37363.0,37362.0,1.41689009]
[1643817894405,0.14872,37363.0,37362.0,1.55189009]
[1643817894605,0.14872,37363.0,37362.0,1.10189009]
[1643817894606,0.2486,37363.0,37362.0,1.10189009]
[1643817894808,0.1,37370.0,37364.0,0.20094]
[1643817895008,0.8028,37374.0,37369.0,0.30134363]
[1643817895009,0.80334978,37374.0,37369.0,0.30134363]
[1643817895207,0.00511371,37372.0,37370.0,0.23703598]
[1643817895408,0.02796336,37382.0,37371.0,1.65]
[1643817895607,0.02784336,37382.0,37371.0,1.65]
[1643817895807,0.02772336,37382.0,37371.0,1.65]
[1643817896009,0.00733049,37378.0,37371.0,1.7]
[1643817896207,0.00727049,37378.0,37371.0,1.65]
[1643817896412,0.00995231,37382.0,37372.0,0.116928]
[1643817896608,0.00977231,37382.0,37372.0,0.49006656]
[1643817896863,0.0065283,37383.0,37374.0,0.10024]
[1643817897053,0.0064083,37383.0,37372.0,0.49006656]
[1643817897253,0.0062883,37383.0,37372.0,0.49006656]
[1643817897455,0.0062883,37383.0,37372.0,0.066928]
[1643817897456,0.00042964,37379.0,37372.0,0.066928]
[1643817897653,0.00042964,37379.0,37371.0,1.65]
[1643817897654,0.00030964,37379.0,37371.0,1.65]
[1643817897854,0.00147794,37383.0,37372.0,1.65]
[1643817898054,0.05055794,37383.0,37372.0,1.716933]
[1643817898255,0.0492,37383.0,37372.0,1.716933]
[1643817898555,0.2001,37374.0,37373.0,1.73284115]
[1643817898753,0.19998,37374.0,37373.0,1.73284115]
[1643817898958,0.19992,37374.0,37373.0,1.73284115]
[1643817899153,0.1998,37374.0,37373.0,1.73284115]
[1643817899354,0.19962,37374.0,37373.0,1.79977405]
[1643817899554,0.19944,37374.0,37373.0,0.44977405]
[1643817899756,0.19944,37374.0,37369.0,0.133858]
[1643817899757,0.05,37374.0,37369.0,0.133858]
[1643817899955,0.05,37374.0,37368.0,0.133854]
[1643817899956,0.35193895,37374.0,37368.0,0.133854]
[1643817900155,0.00553302,37374.0,37368.0,0.133854]
[1643817900354,0.00547302,37374.0,37368.0,0.133854]
[1643817900612,0.00529302,37374.0,37368.0,0.133854]
[1643817900809,0.00517302,37374.0,37370.0,0.24853476]
[1643817901007,0.00505302,37374.0,37370.0,0.24853476]
[1643817901209,0.00493302,37374.0,37370.0,0.24853476]
[1643817901409,0.00481302,37374.0,37371.0,0.23763366]
[1643817901614,0.00463302,37374.0,37371.0,0.23763366]
[1643817901810,0.00445302,37374.0,37371.0,0.23763366]
[1643817902011,0.00427302,37374.0,37371.0,0.23795367]
[1643817902210,0.00415302,37374.0,37371.0,0.23795367]
[1643817902412,0.0492,37373.0,37371.0,0.00032001]
[1643817902611,0.04896,37373.0,37371.0,0.00032001]
[1643817902810,0.04884,37373.0,37371.0,0.00032001]
[1643817903009,0.04884,37373.0,37363.0,0.16719]
[1643817903010,0.40203859,37373.0,37363.0,0.16719]
[1643817903210,0.36592781,37372.0,37370.0,0.00032001]
[1643817903511,0.13948362,37373.0,37370.0,0.00032001]
[1643817903710,0.13930362,37373.0,37370.0,0.00032001]
[1643817903910,0.13912362,37373.0,37370.0,0.00032001]
[1643817904109,0.13900362,37373.0,37370.0,0.00032001]
[1643817904355,0.13870362,37373.0,37365.0,0.22956823]
[1643817904555,0.35651227,37372.0,37370.0,0.00032001]
[1643817904752,0.04994,37372.0,37371.0,0.2155134]
[1643817904953,0.00604604,37372.0,37370.0,0.00032001]
[1643817905153,0.00592604,37372.0,37370.0,0.00032001]
[1643817905353,0.00568604,37372.0,37370.0,0.10440404]
[1643817905555,0.00568604,37372.0,37369.0,0.00032002]
[1643817905556,0.066952,37370.0,37369.0,0.00032002]
[1643817905756,0.066712,37370.0,37369.0,0.40032002]
[1643817905954,0.44030901,37370.0,37369.0,0.00032002]
[1643817906156,1.24491677,37370.0,37369.0,0.00032002]
[1643817906353,1.34461677,37370.0,37369.0,0.00032002]
[1643817906554,1.34461677,37370.0,37360.0,0.731]
[1643817906555,1.34443677,37370.0,37360.0,0.731]
[1643817906754,0.333983,37367.0,37360.0,0.731]
[1643817906957,0.28094415,37365.0,37362.0,0.00128031]
[1643817907154,0.28076415,37365.0,37362.0,0.00128031]
[1643817907354,0.33058415,37365.0,37362.0,0.00128031]
[1643817907556,0.35869845,37364.0,37362.0,0.00128031]
[1643817907756,1.21056845,37364.0,37362.0,0.00128031]
[1643817907957,0.133896,37361.0,37354.0,0.25185382]
[1643817908206,1.22413706,37360.0,37353.0,1.2119]
[1643817908407,1.22413706,37360.0,37348.0,0.7603]
[1643817908408,0.066981,37357.0,37348.0,0.7603]
[1643817908610,0.066981,37357.0,37349.0,0.22270236]
[1643817908611,0.0492,37356.0,37349.0,0.22270236]
[1643817908806,0.40279357,37356.0,37349.0,0.22270236]
[1643817909005,0.40261357,37356.0,37348.0,0.7603]
[1643817909206,0.09988,37355.0,37348.0,0.2097847]
[1643817909405,0.0997,37355.0,37348.0,0.2097847]
[1643817909612,0.09952,37355.0,37348.0,0.2097847]
[1643817909808,0.0994,37355.0,37349.0,0.07430318]
[1643817910008,0.09916,37355.0,37351.0,0.2484512]
[1643817910207,0.19055936,37356.0,37351.0,0.2484512]
[1643817910414,0.742469,37355.0,37354.0,0.26256414]
[1643817910611,0.742349,37355.0,37354.0,1.91256414]
[1643817910809,0.742229,37355.0,37354.0,1.91256414]
[1643817911008,0.742229,37355.0,37354.0,1.66256414]
[1643817911009,0.742049,37355.0,37354.0,1.66256414]
[1643817911214,0.200951,37364.0,37354.0,1.66256414]
[1643817911410,0.200951,37364.0,37362.0,0.88264581]
[1643817911411,0.49982,37363.0,37362.0,0.88264581]
[1643817911613,0.49964,37363.0,37362.0,0.88264581]
[1643817911861,0.49946,37363.0,37362.0,0.88264581]
[1643817912060,0.20869074,37364.0,37362.0,0.78264581]
[1643817912263,0.20857074,37364.0,37362.0,0.78264581]
[1643817912461,0.066784,37363.0,37362.0,1.47541444]
[1643817912664,0.066604,37363.0,37362.0,0.87541444]
[1643817912962,0.066364,37363.0,37361.0,0.00031849]
[1643817913164,0.50896499,37362.0,37356.0,0.00127413]
[1643817913365,0.50896499,37362.0,37343.0,0.001]
[1643817913366,0.05472977,37344.0,37343.0,0.001]
[1643817913567,0.10374977,37344.0,37343.0,0.001]
[1643817913766,0.49994,37343.0,37335.0,0.0051]
[1643817913961,0.29365114,37341.0,37335.0,0.0051]
[1643817914161,0.85222,37342.0,37335.0,0.0051]
[1643817914162,1.0528,37340.0,37335.0,0.0051]
[1643817914361,0.04914,37339.0,37338.0,0.553]
[1643817914562,0.04896,37339.0,37338.0,1.653]
[1643817914765,0.04884,37339.0,37338.0,1.653]
[1643817914961,1.37783856,37340.0,37338.0,1.91988476]
[1643817915162,0.41235856,37340.0,37339.0,2.25849173]
[1643817915362,0.3,37340.0,37339.0,2.25849173]
[1643817915607,0.05526977,37344.0,37339.0,2.25849173]
[1643817915810,0.0492,37351.0,37339.0,2.25849173]
[1643817916010,0.49988,37349.0,37339.0,2.25849173]
[1643817916211,0.0492,37357.0,37339.0,2.25849173]
[1643817916212,0.36464014,37356.0,37354.0,0.26201067]
[1643817916416,0.02785303,37367.0,37354.0,0.26201067]
[1643817916611,0.00035496,37358.0,37354.0,0.26201067]
[1643817916814,0.80287,37357.0,37356.0,0.27949784]
[1643817917013,0.80287,37357.0,37356.0,0.67949784]
[1643817917014,1.436702,37357.0,37356.0,0.67949784]
[1643817917214,1.436702,37357.0,37356.0,1.12949784]
[1643817917215,1.436522,37357.0,37356.0,1.12949784]
[1643817917415,1.436522,37357.0,37356.0,0.27949784]
[1643817917416,1.436402,37357.0,37356.0,0.27949784]
[1643817917613,1.431162,37357.0,37343.0,0.7682]
[1643817917820,1.431162,37357.0,37320.0,0.33313935]
[1643817917821,1.55,37343.0,37320.0,0.33313935]
[1643817918018,1.55,37343.0,37315.0,0.002]
[1643817918019,0.00983706,37319.0,37312.0,0.40289028]
[1643817918219,0.00983706,37319.0,37315.0,0.15439]
[1643817918220,2.60613884,37318.0,37315.0,0.15439]
[1643817918414,2.60613884,37318.0,37312.0,0.007945]
[1643817918415,0.13671264,37317.0,37312.0,0.007945]
[1643817918613,0.35951576,37311.0,37304.0,0.29115109]
[1643817918818,0.6647,37316.0,37310.0,0.37069521]
[1643817919016,0.6647,37316.0,37311.0,0.26801]
[1643817919017,0.80815,37315.0,37311.0,0.26801]
[1643817919215,0.066943,37312.0,37311.0,1.91801]
[1643817919471,0.870653,37312.0,37311.0,1.91801]
[1643817919769,0.870653,37312.0,37311.0,2.23449373]
[1643817919770,0.870413,37312.0,37311.0,2.23449373]
[1643817919975,0.17954867,37314.0,37312.0,1.65]
[1643817920169,0.04982,37316.0,37314.0,0.30064281]
[1643817920170,0.0497,37316.0,37314.0,0.30064281]
[1643817920369,0.04952,37316.0,37315.0,0.26798]
[1643817920571,0.0494,37316.0,37315.0,0.26798]
[1643817920770,0.183242,37316.0,37315.0,1.93518676]
[1643817921069,0.04886,37316.0,37315.0,1.93518676]
[1643817921270,0.08758,37331.0,37316.0,1.65]
[1643817921576,0.00516,37349.0,37327.0,1.85036]
[1643817921770,0.51,37350.0,37333.0,0.15036]
[1643817921771,0.06683,37345.0,37333.0,0.15036]
[1643817921970,0.06671,37345.0,37334.0,0.36274584]
[1643817922173,0.06671,37345.0,37331.0,0.20036]
[1643817922174,0.80347,37348.0,37333.0,0.1]
[1643817922370,0.80347,37348.0,37342.0,0.2215904]
[1643817922371,0.20022,37345.0,37342.0,0.2215904]
[1643817922574,0.20004,37345.0,37338.0,0.00031515]
[1643817922769,0.19992,37345.0,37338.0,0.00031515]
[1643817922971,0.066939,37344.0,37339.0,0.20124924]
[1643817923212,0.19968,37345.0,37339.0,0.20124924]
[1643817923512,0.19938,37345.0,37340.0,0.10178376]
[1643817923712,0.1992,37345.0,37340.0,0.10209889]
[1643817924011,0.28948814,37345.0,37340.0,0.10209889]
[1643817924209,0.28930814,37345.0,37341.0,0.29316736]
[1643817924410,0.28912814,37345.0,37341.0,0.29316736]
[1643817924614,0.28894814,37345.0,37342.0,0.36274584]
[1643817924812,0.28894814,37345.0,37342.0,0.46274584]
[1643817924813,0.09040814,37345.0,37342.0,0.46274584]
[1643817925011,0.09022814,37345.0,37342.0,0.46274584]
[1643817925215,0.08998814,37345.0,37342.0,0.46274584]
[1643817925409,0.80341,37348.0,37343.0,1.65]
[1643817925613,0.80323,37348.0,37341.0,0.00031512]
[1643817925812,0.80305,37348.0,37341.0,0.00031512]
[1643817926011,0.80287,37348.0,37339.0,0.20124924]
[1643817926213,0.80263,37348.0,37343.0,0.00024421]
[1643817926411,0.80245,37348.0,37343.0,0.00024421]
[1643817926610,0.80227,37348.0,37346.0,0.31404373]
[1643817926870,0.85203,37348.0,37346.0,0.31404373]
[1643817927064,0.85191,37348.0,37346.0,0.31404373]
[1643817927265,0.066996,37347.0,37331.0,0.267962]
[1643817927567,0.066996,37347.0,37339.0,0.24938641]
[1643817927568,0.066636,37347.0,37339.0,0.24938641]
[1643817927768,0.066456,37347.0,37339.0,0.24938641]
[1643817927963,0.066276,37347.0,37339.0,0.24938641]
[1643817928164,0.066096,37347.0,37344.0,0.23355059]
[1643817928364,0.065916,37347.0,37346.0,0.07799045]
[1643817928563,0.065736,37347.0,37346.0,0.07799045]
[1643817928765,0.065736,37347.0,37346.0,0.42799045]
[1643817928766,0.065556,37347.0,37346.0,0.42799045]
[1643817928969,0.80227,37348.0,37346.0,1.96601645]
[1643817929266,0.53553,37348.0,37346.0,1.96601645]
[1643817929466,0.53535,37348.0,37346.0,1.96601645]
[1643817929664,0.53511,37348.0,37346.0,1.96601645]
[1643817929865,0.53511,37348.0,37347.0,2.02015242]
[1643817929866,0.53493,37348.0,37347.0,2.02015242]
[1643817930065,0.53475,37348.0,37347.0,2.02015242]
[1643817930263,0.53463,37348.0,37347.0,2.02015242]
[1643817930467,0.53445,37348.0,37347.0,2.02015242]
[1643817930717,0.53415,37348.0,37347.0,2.02015242]
[1643817930900,0.53397,37348.0,37347.0,2.02015242]
[1643817931102,0.53385,37348.0,37347.0,2.02015242]
[1643817931303,0.53367,37348.0,37347.0,2.02015242]
[1643817931500,0.53349,37348.0,37347.0,2.02015242]
[1643817931701,0.53325,37348.0,37346.0,0.06706934]
[1643817931903,0.3489803,37347.0,37346.0,9.434e-05]
[1643817932103,0.58313,37348.0,37340.0,0.066991]
[1643817932300,0.58295,37348.0,37345.0,0.00031448]
[1643817932501,0.58271,37348.0,37345.0,0.00031448]
[1643817932701,0.53307,37348.0,37345.0,0.00031448]
[1643817932903,0.53289,37348.0,37346.0,0.309776]
[1643817933107,0.53277,37348.0,37346.0,0.309776]
[1643817933304,0.53259,37348.0,37346.0,0.309776]
[1643817933504,0.53241,37348.0,37346.0,0.376759]
[1643817933704,0.53223,37348.0,37347.0,0.3323152]
[1643817933903,0.53205,37348.0,37347.0,0.09006716]
[1643817934102,0.53187,37348.0,37347.0,0.09006716]
[1643817934355,0.53163,37348.0,37347.0,0.09006716]
[1643817934553,0.53139,37348.0,37347.0,2.02017802]
[1643817934754,0.53121,37348.0,37347.0,2.02017802]
[1643817934955,0.53109,37348.0,37347.0,0.09006716]
[1643817935158,0.5250974,37348.0,37347.0,0.09006716]
[1643817935353,0.5249174,37348.0,37347.0,0.09006716]
[1643817935555,0.5247374,37348.0,37347.0,0.09006716]
[1643817935760,0.5245574,37348.0,37344.0,0.13396]
[1643817935956,0.5245574,37348.0,37346.0,0.00031447]
[1643817935957,0.5914294,37348.0,37346.0,0.00031447]
[1643817936156,0.7411894,37348.0,37346.0,0.00031447]
[1643817936358,3.09693793,37347.0,37346.0,0.00025447]
[1643817936560,3.09693793,37347.0,37340.0,0.00125809]
[1643817936561,0.00014531,37344.0,37340.0,0.00125809]
[1643817936757,0.76621974,37343.0,37340.0,0.00125809]
[1643817936957,0.76621974,37343.0,37339.0,0.001]
[1643817936958,0.81109974,37343.0,37339.0,0.001]
[1643817937158,0.6361634,37343.0,37339.0,0.001]
[1643817937354,0.6358634,37343.0,37339.0,0.001]
[1643817937552,0.6356834,37343.0,37339.0,0.001]
[1643817937755,0.63436325,37343.0,37339.0,0.001]
[1643817937956,0.63418325,37343.0,37339.0,0.001]
[1643817938207,0.63388325,37343.0,37339.0,0.00109431]
[1643817938412,0.63236991,37343.0,37339.0,0.00109431]
[1643817938609,0.63218991,37343.0,37339.0,0.00109431]
[1643817938809,0.58694991,37343.0,37339.0,0.00109431]
[1643817939007,0.58676991,37343.0,37339.0,0.00109431]
[1643817939209,0.58658991,37343.0,37339.0,0.001]
[1643817939408,0.58652991,37343.0,37340.0,0.47931182]
[1643817939709,0.58616991,37343.0,37341.0,0.07568172]
[1643817939908,0.58604991,37343.0,37341.0,0.07568172]
[1643817940209,0.58574991,37343.0,37340.0,0.23719776]
[1643817940409,0.61355943,37343.0,37340.0,0.23719776]
[1643817940609,0.2004,37342.0,37340.0,0.23751149]
[1643817940809,0.20028,37342.0,37340.0,0.23751149]
[1643817941011,0.20016,37342.0,37340.0,0.23751149]
[1643817941209,0.19998,37342.0,37340.0,0.23751149]
[1643817941511,0.19968,37342.0,37340.0,0.23751149]
[1643817941709,0.61325943,37343.0,37340.0,0.23719776]
[1643817941956,0.61307943,37343.0,37340.0,0.23719776]
[1643817942160,0.61295943,37343.0,37340.0,0.23719776]
[1643817942355,0.61277943,37343.0,37340.0,0.23719776]
[1643817942558,0.61259943,37343.0,37340.0,0.23719776]
[1643817942756,0.61241943,37343.0,37340.0,0.23719776]
[1643817942958,0.61223943,37343.0,37340.0,0.23719776]
[1643817943158,0.61217943,37343.0,37340.0,0.2375115]
[1643817943358,0.61199943,37343.0,37340.0,0.2375115]
[1643817943562,0.61181943,37343.0,37340.0,0.2375115]
[1643817943758,0.61163943,37343.0,37340.0,0.2375115]
[1643817943956,0.61145943,37343.0,37340.0,0.2375115]
[1643817944156,0.61145943,37343.0,37340.0,0.23719776]
[1643817944157,0.61133943,37343.0,37340.0,0.23719776]
[1643817944356,0.61133943,37343.0,37341.0,0.09777382]
[1643817944357,0.61121943,37343.0,37341.0,0.09777382]
[1643817944561,0.61097943,37343.0,37341.0,0.09777382]
[1643817944761,0.54377343,37343.0,37341.0,0.09777382]
[1643817944958,0.51566391,37343.0,37341.0,0.09777382]
[1643817945161,0.51554391,37343.0,37341.0,0.09777382]
[1643817945359,0.51536391,37343.0,37341.0,0.09777382]
[1643817945603,0.51536391,37343.0,37342.0,1.28112566]
[1643817945604,0.51512391,37343.0,37342.0,1.28112566]
[1643817945904,0.51494391,37343.0,37342.0,1.28112566]
[1643817946107,0.51476391,37343.0,37342.0,1.28112566]
[1643817946306,0.51458391,37343.0,37341.0,0.09777382]
[1643817946504,0.51434391,37343.0,37340.0,0.23719776]
[1643817946704,0.51416391,37343.0,37341.0,0.00031464]
[1643817946905,2.7946482,37343.0,37341.0,0.00031464]
[1643817947104,2.7944682,37343.0,37341.0,0.00031464]
[1643817947304,0.18162615,37342.0,37341.0,0.00031464]
[1643817947506,0.18144615,37342.0,37341.0,0.35031464]
[1643817947704,0.51374391,37343.0,37341.0,0.35]
[1643817947705,0.51368391,37343.0,37341.0,0.35]
[1643817947909,0.51350391,37343.0,37341.0,0.35]
[1643817948106,0.51350391,37343.0,37340.0,0.23751241]
[1643817948107,0.51332391,37343.0,37340.0,0.23751241]
[1643817948307,0.51314391,37343.0,37340.0,0.23751241]
[1643817948507,0.51290391,37343.0,37341.0,0.08467646]
[1643817948713,0.51272391,37343.0,37341.0,0.08467646]
[1643817948909,0.51260391,37343.0,37341.0,0.08467646]
[1643817949207,0.71342391,37343.0,37341.0,0.08467646]
[1643817949457,0.7134176,37343.0,37341.0,0.08467646]
[1643817949661,0.7132376,37343.0,37341.0,0.08467646]
[1643817949857,0.00014531,37344.0,37341.0,0.08467646]
[1643817950059,2.531e-05,37344.0,37342.0,1.45]
[1643817950258,0.02798806,37347.0,37342.0,1.45]
[1643817950259,0.02783337,37347.0,37342.0,1.45]
[1643817950559,0.02783337,37347.0,37341.0,0.21865646]
[1643817950560,0.02739329,37347.0,37341.0,0.21865646]
[1643817950761,0.02739329,37347.0,37343.0,0.21218505]
[1643817950762,0.02721329,37347.0,37343.0,0.21218505]
[1643817950960,0.016929,37348.0,37344.0,1.65]
[1643817951166,0.00054887,37355.0,37344.0,1.65]
[1643817951167,0.00054887,37355.0,37345.0,1.65]
[1643817951168,0.066979,37352.0,37345.0,1.65]
[1643817951364,0.133953,37356.0,37346.0,0.3490403]
[1643817951564,0.00994,37359.0,37347.0,1.75]
[1643817951760,0.00976,37359.0,37349.0,0.26110957]
[1643817951962,0.00958,37359.0,37356.0,0.37841277]
[1643817952163,0.0094,37359.0,37357.0,0.31930709]
[1643817952359,0.00928,37359.0,37357.0,0.31930709]
[1643817952564,0.066787,37358.0,37357.0,0.31930709]
[1643817952761,0.066547,37358.0,37357.0,0.31930709]
[1643817952961,0.066367,37358.0,37357.0,0.31930709]
[1643817953212,0.066067,37358.0,37357.0,0.76930709]
[1643817953413,0.065887,37358.0,37357.0,0.31930709]
[1643817953712,0.065887,37358.0,37357.0,0.16722472]
[1643817953713,0.065707,37358.0,37357.0,0.16722472]
[1643817953915,0.065527,37358.0,37348.0,0.3490403]
[1643817954114,0.25995574,37359.0,37343.0,0.3490403]
[1643817954115,0.0994,37355.0,37343.0,0.3490403]
[1643817954312,0.25995574,37359.0,37341.0,0.4015903]
[1643817954313,0.06693,37348.0,37341.0,0.4015903]
[1643817954514,0.06669,37348.0,37342.0,0.30987539]
[1643817954712,0.05,37350.0,37342.0,0.40107584]
[1643817954913,0.09988,37357.0,37348.0,0.50210893]
[1643817955115,0.09988,37357.0,37354.0,0.26675107]
[1643817955116,0.200974,37357.0,37354.0,0.26675107]
[1643817955312,0.00043244,37355.0,37354.0,0.26675107]
[1643817955511,0.00025244,37355.0,37354.0,1.16675107]
[1643817955712,0.00013244,37355.0,37354.0,1.65]
[1643817955912,0.20092644,37357.0,37354.0,0.29774662]
[1643817956118,0.20058,37356.0,37354.0,0.08262716]
[1643817956312,0.2004,37356.0,37354.0,0.08262716]
[1643817956514,0.20022,37356.0,37355.0,0.0817871]
[1643817956713,0.62004,37356.0,37348.0,0.38415879]
[1643817956962,0.6198,37356.0,37348.0,0.06696882]
[1643817957162,0.15660797,37355.0,37341.0,0.05255]
[1643817957362,0.38923138,37351.0,37341.0,0.05255]
[1643817957564,0.39373227,37354.0,37341.0,0.05255]
[1643817957565,0.04463197,37350.0,37341.0,0.05255]
[1643817957760,0.04445197,37351.0,37344.0,0.23508759]
[1643817957961,0.89215084,37354.0,37344.0,0.53252103]
[1643817957962,0.64464285,37354.0,37344.0,0.53252103]
[1643817958162,0.05,37351.0,37344.0,0.53252103]
[1643817958461,0.066815,37351.0,37344.0,0.53252103]
[1643817958661,0.066695,37351.0,37344.0,0.53252103]
[1643817958863,0.066515,37351.0,37344.0,0.29743344]
[1643817959065,0.066395,37351.0,37344.0,0.29743344]
[1643817959262,0.066215,37351.0,37344.0,0.29743344]
[1643817959463,0.066035,37351.0,37344.0,0.29743344]
[1643817959664,0.065855,37351.0,37344.0,0.29743344]
[1643817959865,0.115075,37351.0,37346.0,0.00032506]
[1643817960065,0.065555,37351.0,37349.0,0.09558571]
[1643817960266,0.80315,37350.0,37346.0,0.00032506]
[1643817960467,0.80291,37350.0,37346.0,0.00032506]
[1643817960712,0.85273,37350.0,37346.0,0.00032506]
[1643817960912,0.85255,37350.0,37344.0,0.29743344]
[1643817961114,0.85237,37350.0,37346.0,0.00032506]
[1643817961313,0.85219,37350.0,37348.0,0.09440705]